[Event "BPB Limburg Open 2019 Group A"]
[Site "Maastricht, Netherlands"]
[Date "2019.06.08"]
[Round "3.8"]
[White "De Jong, Tom"]
[Black "Monroy, Charles"]
[Result "0-1"]
[TimeControl "2h + 15 sec/move"]
[WhiteFideId "1000543"]
[BlackFideId "621641"]
[WhiteElo "2155"]
[BlackElo "2432"]

1. e4 {[%clk 02:00:22]} {[%emt 00:00:06]} e5 {[%clk 02:00:09]} {[%emt
00:00:22]} 2. Nf3 {[%clk 02:00:29]} {[%emt 00:00:09]} Nc6 {[%clk 02:00:20]}
{[%emt 00:00:03]} 3. Bb5 {[%clk 02:00:35]} {[%emt 00:00:10]} a6 {[%clk
02:00:29]} {[%emt 00:00:07]} 4. Ba4 {[%clk 02:00:43]} {[%emt 00:00:07]} Nf6
{[%clk 02:00:33]} {[%emt 00:00:10]} 5. O-O {[%clk 02:00:15]} {[%emt 00:00:43]}
Be7 {[%clk 02:00:23]} {[%emt 00:00:26]} 6. d3 {[%clk 01:53:27]} {[%emt
00:07:02]} b5 {[%clk 01:59:06]} {[%emt 00:01:33]} 7. Bb3 {[%clk 01:53:39]}
{[%emt 00:00:03]} d6 {[%clk 01:57:40]} {[%emt 00:01:41]} 8. a3 {[%clk
01:53:34]} {[%emt 00:00:20]} O-O {[%clk 01:56:45]} {[%emt 00:01:10]} 9. Nc3
{[%clk 01:53:24]} {[%emt 00:00:25]} Bg4 {[%clk 01:41:22]} {[%emt 00:15:38]} 10.
Be3 {[%clk 01:53:03]} {[%emt 00:00:36]} Nd4 {[%clk 01:29:24]} {[%emt 00:12:13]}
11. Bxd4 {[%clk 01:52:55]} {[%emt 00:00:23]} exd4 {[%clk 01:29:35]} {[%emt
00:00:04]} 12. Nd5 {[%clk 01:52:57]} {[%emt 00:00:13]} c5 {[%clk 01:28:58]}
{[%emt 00:00:51]} 13. c3 {[%clk 01:41:07]} {[%emt 00:12:05]} dxc3 {[%clk
01:11:05]} {[%emt 00:18:09]} 14. bxc3 {[%clk 01:40:57]} {[%emt 00:00:25]} Rc8
{[%clk 01:09:56]} {[%emt 00:01:24]} 15. Re1 {[%clk 01:29:46]} {[%emt 00:11:25]}
c4 {[%clk 01:06:06]} {[%emt 00:04:05]} 16. dxc4 {[%clk 01:26:06]} {[%emt
00:03:55]} bxc4 {[%clk 01:05:58]} {[%emt 00:00:24]} 17. Ba2 {[%clk 01:26:09]}
{[%emt 00:00:11]} Nxd5 {[%clk 01:05:13]} {[%emt 00:01:00]} 18. Qxd5 {[%clk
01:23:56]} {[%emt 00:02:28]} Bxf3 {[%clk 01:02:31]} {[%emt 00:02:57]} 19. gxf3
{[%clk 01:24:08]} {[%emt 00:00:02]} Rc5 {[%clk 01:02:36]} {[%emt 00:00:10]} 20.
Qb7 {[%clk 01:16:48]} {[%emt 00:07:36]} Bf6 {[%clk 00:55:56]} {[%emt 00:06:56]}
21. Red1 {[%clk 01:14:06]} {[%emt 00:02:57]} Be5 {[%clk 00:43:42]} {[%emt
00:12:29]} 22. Rd5 {[%clk 01:08:24]} {[%emt 00:05:57]} Qh4 {[%clk 00:42:56]}
{[%emt 00:01:01]} 23. Kf1 {[%clk 01:05:17]} {[%emt 00:03:22]} Rcc8 {[%clk
00:42:35]} {[%emt 00:00:36]} 24. Rb1 {[%clk 01:02:55]} {[%emt 00:02:36]} f5
{[%clk 00:41:35]} {[%emt 00:01:17]} 25. Bxc4 {[%clk 00:58:19]} {[%emt
00:04:51]} Qh3+ {[%clk 00:33:12]} {[%emt 00:08:38]} 26. Ke2 {[%clk 00:42:09]}
{[%emt 00:16:25]} Kh8 {[%clk 00:28:03]} {[%emt 00:05:24]} 27. Bd3 {[%clk
00:41:35]} {[%emt 00:00:49]} Rxc3 {[%clk 00:24:04]} {[%emt 00:04:14]} 28. exf5
{[%clk 00:29:08]} {[%emt 00:12:42]} Re8 {[%clk 00:20:42]} {[%emt 00:03:37]} 29.
Qf7 {[%clk 00:26:43]} {[%emt 00:02:39]} Rcc8 {[%clk 00:20:39]} {[%emt
00:00:18]} 30. Rb7 {[%clk 00:24:11]} {[%emt 00:02:47]} Bf6+ {[%clk 00:15:42]}
{[%emt 00:05:12]} 31. Be4 {[%clk 00:23:10]} {[%emt 00:01:16]} Rxe4+ {[%clk
00:13:36]} {[%emt 00:02:22]} 32. fxe4 {[%clk 00:22:43]} {[%emt 00:00:42]} Qg4+
{[%clk 00:13:41]} {[%emt 00:00:10]} 33. Kd2 {[%clk 00:13:36]} {[%emt 00:09:23]}
Bg5+ {[%clk 00:13:04]} {[%emt 00:00:51]} 0-1

[Event "BPB Limburg Open 2019 Group A"]
[Site "Maastricht, Netherlands"]
[Date "2019.06.08"]
[Round "3.9"]
[White "Leenhouts, Koen"]
[Black "Elgersma, Onno"]
[Result "1/2-1/2"]
[TimeControl "2h + 15 sec/move"]
[WhiteFideId "1008439"]
[BlackFideId "1053531"]
[WhiteElo "2432"]
[BlackElo "2173"]

1. d4 {[%clk 01:56:17]} {[%emt 00:04:11]} Nf6 {[%clk 01:59:17]} {[%emt
00:01:14]} 2. c4 {[%clk 01:55:48]} {[%emt 00:00:44]} e6 {[%clk 01:59:25]}
{[%emt 00:00:07]} 3. Nc3 {[%clk 01:55:51]} {[%emt 00:00:11]} Bb4 {[%clk
01:59:14]} {[%emt 00:00:27]} 4. Qc2 {[%clk 01:55:55]} {[%emt 00:00:10]} O-O
{[%clk 01:59:01]} {[%emt 00:00:28]} 5. Nf3 {[%clk 01:55:08]} {[%emt 00:01:00]}
c5 {[%clk 01:58:07]} {[%emt 00:01:11]} 6. dxc5 {[%clk 01:55:11]} {[%emt
00:00:13]} Na6 {[%clk 01:57:47]} {[%emt 00:00:35]} 7. g3 {[%clk 01:55:14]}
{[%emt 00:00:11]} Nxc5 {[%clk 01:57:34]} {[%emt 00:00:29]} 8. Bg2 {[%clk
01:55:20]} {[%emt 00:00:07]} b6 {[%clk 01:56:28]} {[%emt 00:01:22]} 9. O-O
{[%clk 01:55:09]} {[%emt 00:00:25]} Bb7 {[%clk 01:56:29]} {[%emt 00:00:16]} 10.
Nb5 {[%clk 01:54:59]} {[%emt 00:00:25]} Be4 {[%clk 01:56:27]} {[%emt 00:00:17]}
11. Qd1 {[%clk 01:54:54]} {[%emt 00:00:20]} Nb7 {[%clk 01:53:35]} {[%emt
00:03:08]} 12. Bf4 {[%clk 01:53:24]} {[%emt 00:01:43]} Rc8 {[%clk 01:42:35]}
{[%emt 00:11:16]} 13. Rc1 {[%clk 01:46:17]} {[%emt 00:07:21]} a6 {[%clk
01:40:18]} {[%emt 00:02:33]} 14. Nc3 {[%clk 01:46:09]} {[%emt 00:00:22]} Bxc3
{[%clk 01:37:13]} {[%emt 00:03:20]} 15. Rxc3 {[%clk 01:46:11]} {[%emt
00:00:13]} d5 {[%clk 01:36:19]} {[%emt 00:01:09]} 16. Qc1 {[%clk 01:26:18]}
{[%emt 00:20:08]} d4 {[%clk 01:23:03]} {[%emt 00:13:32]} 17. Ra3 {[%clk
01:26:18]} {[%emt 00:00:13]} b5 {[%clk 01:22:07]} {[%emt 00:01:12]} 18. Be5
{[%clk 01:21:39]} {[%emt 00:04:53]} Rxc4 {[%clk 01:15:36]} {[%emt 00:06:48]} 19.
Qg5 {[%clk 01:16:36]} {[%emt 00:05:17]} h6 {[%clk 01:01:08]} {[%emt 00:14:44]}
20. Bxf6 {[%clk 01:10:47]} {[%emt 00:06:03]} hxg5 {[%clk 00:49:38]} {[%emt
00:11:46]} 21. Bxd8 {[%clk 01:10:54]} {[%emt 00:00:08]} Rxd8 {[%clk 00:49:50]}
{[%emt 00:00:03]} 22. Rxa6 {[%clk 01:04:02]} {[%emt 00:07:07]} Rc2 {[%clk
00:43:11]} {[%emt 00:06:53]} 23. Nxg5 {[%clk 01:03:08]} {[%emt 00:01:09]} Bxg2
{[%clk 00:43:08]} {[%emt 00:00:18]} 24. Kxg2 {[%clk 01:03:14]} {[%emt
00:00:06]} Rxe2 {[%clk 00:41:37]} {[%emt 00:01:49]} 25. Rd1 {[%clk 00:58:02]}
{[%emt 00:05:26]} e5 {[%clk 00:33:29]} {[%emt 00:08:23]} 26. b3 {[%clk
00:53:01]} {[%emt 00:05:15]} g6 {[%clk 00:29:07]} {[%emt 00:04:37]} 27. Kf1
{[%clk 00:48:42]} {[%emt 00:04:34]} Rc2 {[%clk 00:27:19]} {[%emt 00:02:04]} 28.
Ne4 {[%clk 00:48:36]} {[%emt 00:00:21]} Rdc8 {[%clk 00:21:55]} {[%emt
00:05:39]} 29. Ra7 {[%clk 00:45:29]} {[%emt 00:03:21]} Nc5 {[%clk 00:15:08]}
{[%emt 00:07:02]} 30. Nd6 {[%clk 00:44:47]} {[%emt 00:00:56]} Rc6 {[%clk
00:14:41]} {[%emt 00:00:43]} 31. Nxf7 {[%clk 00:43:41]} {[%emt 00:01:21]} Ne4
{[%clk 00:14:02]} {[%emt 00:00:54]} 32. Nxe5 {[%clk 00:36:53]} {[%emt
00:07:03]} Rxf2+ {[%clk 00:14:04]} {[%emt 00:00:14]} 33. Kg1 {[%clk 00:37:01]}
{[%emt 00:00:06]} Rcc2 {[%clk 00:13:56]} {[%emt 00:00:23]} 34. Ra8+ {[%clk
00:36:48]} {[%emt 00:00:28]} Kg7 {[%clk 00:13:42]} {[%emt 00:00:30]} 35. Ra7+
{[%clk 00:36:57]} {[%emt 00:00:05]} Kg8 {[%clk 00:12:54]} {[%emt 00:01:03]}
1/2-1/2

[Event "BPB Limburg Open 2019 Group A"]
[Site "Maastricht, Netherlands"]
[Date "2019.06.08"]
[Round "3.10"]
[White "Haast, Mark"]
[Black "Tomov, Georgi"]
[Result "1-0"]
[TimeControl "2h + 15 sec/move"]
[WhiteFideId "1021133"]
[BlackFideId "2908964"]
[WhiteElo "2392"]
[BlackElo "2328"]

1. c4 {[%clk 02:00:22]} {[%emt 00:00:07]} e6 {[%clk 02:00:12]} {[%emt
00:00:18]} 2. g3 {[%clk 02:00:00]} {[%emt 00:00:38]} d5 {[%clk 02:00:15]}
{[%emt 00:00:13]} 3. Bg2 {[%clk 01:59:32]} {[%emt 00:00:42]} Nf6 {[%clk
01:58:45]} {[%emt 00:01:45]} 4. Nf3 {[%clk 01:59:35]} {[%emt 00:00:12]} dxc4
{[%clk 01:58:12]} {[%emt 00:00:48]} 5. O-O {[%clk 01:59:36]} {[%emt 00:00:14]}
a6 {[%clk 01:54:53]} {[%emt 00:03:34]} 6. a4 {[%clk 01:59:13]} {[%emt
00:00:37]} Nc6 {[%clk 01:50:46]} {[%emt 00:04:22]} 7. Na3 {[%clk 01:54:51]}
{[%emt 00:04:37]} Bxa3 {[%clk 01:42:59]} {[%emt 00:08:02]} 8. Rxa3 {[%clk
01:53:20]} {[%emt 00:01:46]} Rb8 {[%clk 01:40:26]} {[%emt 00:02:48]} 9. b3
{[%clk 01:49:41]} {[%emt 00:03:53]} cxb3 {[%clk 01:38:27]} {[%emt 00:02:14]} 10.
Rxb3 {[%clk 01:49:28]} {[%emt 00:00:29]} b5 {[%clk 01:32:11]} {[%emt 00:06:31]}
11. axb5 {[%clk 01:46:18]} {[%emt 00:03:25]} axb5 {[%clk 01:32:19]} {[%emt
00:00:07]} 12. Qc2 {[%clk 01:41:56]} {[%emt 00:04:37]} Bd7 {[%clk 01:22:58]}
{[%emt 00:09:37]} 13. Bb2 {[%clk 01:35:01]} {[%emt 00:07:09]} Na5 {[%clk
01:10:45]} {[%emt 00:12:29]} 14. Rd3 {[%clk 01:27:05]} {[%emt 00:08:11]} Nc4
{[%clk 01:05:00]} {[%emt 00:06:01]} 15. Ne5 {[%clk 01:25:33]} {[%emt 00:01:46]}
Nxb2 {[%clk 00:56:02]} {[%emt 00:09:14]} 16. Qxb2 {[%clk 01:24:03]} {[%emt
00:01:45]} Rb6 {[%clk 00:56:05]} {[%emt 00:00:12]} 17. Bc6 {[%clk 01:19:12]}
{[%emt 00:05:05]} O-O {[%clk 00:46:51]} {[%emt 00:09:29]} 18. Bxd7 {[%clk
01:11:06]} {[%emt 00:08:21]} Qa8 {[%clk 00:45:43]} {[%emt 00:01:23]} 19. Rc1
{[%clk 01:09:49]} {[%emt 00:01:33]} Ra6 {[%clk 00:43:14]} {[%emt 00:02:44]} 20.
Bc6 {[%clk 01:09:20]} {[%emt 00:00:43]} Qa7 {[%clk 00:43:15]} {[%emt 00:00:15]}
21. Qxb5 {[%clk 01:03:15]} {[%emt 00:06:20]} Ra5 {[%clk 00:43:11]} {[%emt
00:00:19]} 22. Qb2 {[%clk 01:03:18]} {[%emt 00:00:11]} h6 {[%clk 00:43:00]}
{[%emt 00:00:27]} 23. Bf3 {[%clk 00:57:44]} {[%emt 00:08:24]} 1-0

[Event "BPB Limburg Open 2019 Group A"]
[Site "Maastricht, Netherlands"]
[Date "2019.06.08"]
[Round "3.11"]
[White "Decoster, Frederic"]
[Black "Blom, Vincent"]
[Result "1/2-1/2"]
[TimeControl "2h + 15 sec/move"]
[WhiteFideId "204269"]
[BlackFideId "1014358"]
[WhiteElo "2293"]
[BlackElo "2291"]

1. e4 {[%clk 02:00:23]} {[%emt 00:00:05]} c5 {[%clk 01:57:31]} {[%emt
00:03:01]} 2. Nf3 {[%clk 02:00:21]} {[%emt 00:00:16]} Nc6 {[%clk 01:57:40]}
{[%emt 00:00:06]} 3. d4 {[%clk 02:00:16]} {[%emt 00:00:20]} cxd4 {[%clk
01:57:49]} {[%emt 00:00:06]} 4. Nxd4 {[%clk 02:00:15]} {[%emt 00:00:16]} e5
{[%clk 01:57:58]} {[%emt 00:00:06]} 5. Nb5 {[%clk 02:00:09]} {[%emt 00:00:21]}
a6 {[%clk 01:57:50]} {[%emt 00:00:23]} 6. Nd6+ {[%clk 01:59:29]} {[%emt
00:00:54]} Bxd6 {[%clk 01:58:00]} {[%emt 00:00:06]} 7. Qxd6 {[%clk 01:59:37]}
{[%emt 00:00:06]} Qf6 {[%clk 01:57:14]} {[%emt 00:01:01]} 8. Qxf6 {[%clk
01:57:46]} {[%emt 00:02:07]} Nxf6 {[%clk 01:57:23]} {[%emt 00:00:06]} 9. Nc3
{[%clk 01:55:36]} {[%emt 00:02:25]} Nb4 {[%clk 01:53:46]} {[%emt 00:03:48]} 10.
Bd3 {[%clk 01:52:19]} {[%emt 00:03:36]} h6 {[%clk 01:44:30]} {[%emt 00:09:31]}
11. f4 {[%clk 01:43:06]} {[%emt 00:09:28]} d6 {[%clk 01:34:35]} {[%emt
00:10:10]} 12. O-O {[%clk 01:33:40]} {[%emt 00:09:41]} Nxd3 {[%clk 01:18:13]}
{[%emt 00:16:37]} 13. cxd3 {[%clk 01:32:46]} {[%emt 00:01:09]} Bd7 {[%clk
01:18:10]} {[%emt 00:00:18]} 14. Be3 {[%clk 01:28:50]} {[%emt 00:04:12]} Bc6
{[%clk 01:07:03]} {[%emt 00:11:21]} 15. a4 {[%clk 01:20:05]} {[%emt 00:09:00]}
Ke7 {[%clk 00:49:53]} {[%emt 00:17:25]} 16. h3 {[%clk 01:08:55]} {[%emt
00:11:25]} b5 {[%clk 00:29:29]} {[%emt 00:20:39]} 17. a5 {[%clk 00:53:30]}
{[%emt 00:15:39]} Rac8 {[%clk 00:23:57]} {[%emt 00:05:47]} 18. b4 {[%clk
00:44:26]} {[%emt 00:09:20]} Bb7 {[%clk 00:19:17]} {[%emt 00:04:54]} 19. Rac1
{[%clk 00:38:17]} {[%emt 00:06:23]} exf4 {[%clk 00:12:14]} {[%emt 00:07:19]} 20.
Bxf4 {[%clk 00:35:19]} {[%emt 00:03:13]} d5 {[%clk 00:06:19]} {[%emt 00:06:10]}
21. e5 {[%clk 00:34:21]} {[%emt 00:01:12]} Nd7 {[%clk 00:05:57]} {[%emt
00:00:37]} 22. Ne2 {[%clk 00:27:15]} {[%emt 00:07:21]} Rxc1 {[%clk 00:05:27]}
{[%emt 00:00:45]} 23. Rxc1 {[%clk 00:27:23]} {[%emt 00:00:06]} Rc8 {[%clk
00:05:31]} {[%emt 00:00:11]} 24. Rxc8 {[%clk 00:24:05]} {[%emt 00:03:34]} Bxc8
{[%clk 00:05:44]} {[%emt 00:00:02]} 25. Nd4 {[%clk 00:22:32]} {[%emt 00:01:47]}
Nf8 {[%clk 00:05:42]} {[%emt 00:00:17]} 26. Kf2 {[%clk 00:21:56]} {[%emt
00:00:51]} Bd7 {[%clk 00:03:54]} {[%emt 00:02:05]} 27. Ke3 {[%clk 00:21:24]}
{[%emt 00:00:46]} h5 {[%clk 00:03:38]} {[%emt 00:00:31]} 28. Ne2 {[%clk
00:16:15]} {[%emt 00:05:24]} Ne6 {[%clk 00:03:41]} {[%emt 00:00:13]} 29. d4
{[%clk 00:14:08]} {[%emt 00:02:22]} g6 {[%clk 00:03:23]} {[%emt 00:00:33]} 30.
Bg3 {[%clk 00:11:56]} {[%emt 00:02:26]} Ke8 {[%clk 00:03:24]} {[%emt 00:00:14]}
31. Bh4 {[%clk 00:10:52]} {[%emt 00:01:18]} Ng7 {[%clk 00:03:01]} {[%emt
00:00:38]} 32. Bf6 {[%clk 00:09:48]} {[%emt 00:01:19]} Ne6 {[%clk 00:03:15]}
{[%emt 00:00:02]} 33. Nc3 {[%clk 00:08:03]} {[%emt 00:01:59]} Bc6 {[%clk
00:03:29]} 34. Nd1 {[%clk 00:08:00]} {[%emt 00:00:19]} Bd7 {[%clk 00:03:33]}
{[%emt 00:00:12]} 35. Nf2 {[%clk 00:08:03]} {[%emt 00:00:11]} Bc8 {[%clk
00:03:23]} {[%emt 00:00:25]} 36. g4 {[%clk 00:08:07]} {[%emt 00:00:11]} hxg4
{[%clk 00:03:30]} {[%emt 00:00:08]} 37. Nxg4 {[%clk 00:08:14]} {[%emt
00:00:08]} Nc7 {[%clk 00:03:08]} {[%emt 00:00:37]} 38. Nf2 {[%clk 00:07:38]}
{[%emt 00:00:51]} Bf5 {[%clk 00:03:18]} {[%emt 00:00:04]} 39. Ke4 {[%emt
00:02:52]} 1/2-1/2

[Event "BPB Limburg Open 2019 Group A"]
[Site "Maastricht, Netherlands"]
[Date "2019.06.08"]
[Round "3.12"]
[White "Klinova, Masha"]
[Black "Helmond, Frans"]
[Result "1/2-1/2"]
[TimeControl "2h + 15 sec/move"]
[WhiteFideId "2802015"]
[BlackFideId "1003755"]
[WhiteElo "2266"]
[BlackElo "2108"]

1. e4 {[%clk 01:57:39]} {[%emt 00:02:50]} c5 {[%clk 02:00:22]} {[%emt
00:00:09]} 2. Nf3 {[%clk 01:57:48]} {[%emt 00:00:05]} d6 {[%clk 02:00:25]}
{[%emt 00:00:12]} 3. Bb5+ {[%clk 01:57:57]} {[%emt 00:00:06]} Bd7 {[%clk
02:00:27]} {[%emt 00:00:13]} 4. Bxd7+ {[%clk 01:58:06]} {[%emt 00:00:06]} Qxd7
{[%clk 02:00:37]} {[%emt 00:00:05]} 5. c4 {[%clk 01:58:17]} {[%emt 00:00:03]}
Nc6 {[%clk 02:00:40]} {[%emt 00:00:13]} 6. Nc3 {[%clk 01:58:26]} {[%emt
00:00:06]} Nf6 {[%clk 02:00:37]} {[%emt 00:00:17]} 7. d4 {[%clk 01:58:26]}
{[%emt 00:00:15]} cxd4 {[%clk 02:00:36]} {[%emt 00:00:17]} 8. Nxd4 {[%clk
01:58:33]} {[%emt 00:00:07]} e6 {[%clk 02:00:40]} {[%emt 00:00:11]} 9. Be3
{[%clk 01:58:33]} {[%emt 00:00:15]} Be7 {[%clk 02:00:22]} {[%emt 00:00:33]} 10.
O-O {[%clk 01:57:52]} {[%emt 00:00:56]} O-O {[%clk 02:00:29]} {[%emt 00:00:08]}
11. Rc1 {[%clk 01:55:04]} {[%emt 00:03:03]} Rfd8 {[%clk 01:58:02]} {[%emt
00:02:42]} 12. f3 {[%clk 01:49:10]} {[%emt 00:06:09]} d5 {[%clk 01:38:39]}
{[%emt 00:19:39]} 13. cxd5 {[%clk 01:44:26]} {[%emt 00:04:59]} exd5 {[%clk
01:38:27]} {[%emt 00:00:26]} 14. Nxc6 {[%clk 01:41:36]} {[%emt 00:03:05]} bxc6
{[%clk 01:38:32]} {[%emt 00:00:10]} 15. exd5 {[%clk 01:41:09]} {[%emt
00:00:41]} cxd5 {[%clk 01:32:34]} {[%emt 00:06:13]} 16. Bd4 {[%clk 01:40:55]}
{[%emt 00:00:28]} Ne8 {[%clk 01:27:54]} {[%emt 00:04:56]} 17. Qa4 {[%clk
01:36:25]} {[%emt 00:04:44]} Nc7 {[%clk 01:24:23]} {[%emt 00:03:47]} 18. Rfd1
{[%clk 01:31:23]} {[%emt 00:05:16]} Qf5 {[%clk 01:18:46]} {[%emt 00:05:53]} 19.
Ne2 {[%clk 01:15:40]} {[%emt 00:15:58]} Ne6 {[%clk 01:17:57]} {[%emt 00:01:04]}
20. Qc2 {[%clk 01:01:55]} {[%emt 00:14:00]} Qg5 {[%clk 01:07:43]} {[%emt
00:10:30]} 21. Bf2 {[%clk 01:00:40]} {[%emt 00:01:29]} Bf6 {[%clk 01:02:40]}
{[%emt 00:05:18]} 22. b3 {[%clk 00:54:45]} {[%emt 00:06:10]} h5 {[%clk
00:52:56]} {[%emt 00:09:59]} 23. h4 {[%clk 00:48:38]} {[%emt 00:06:21]} Qe5
{[%emt 00:00:41]} 24. Bg3 {[%clk 00:40:22]} {[%emt 00:08:29]} Qe3+ {[%emt
00:00:35]} 25. Bf2 {[%clk 00:40:20]} {[%emt 00:00:13]} Qe5 {[%clk 00:52:27]}
{[%emt 00:00:04]} 26. Bg3 {[%clk 00:40:11]} {[%emt 00:00:24]} Qe3+ {[%clk
00:52:37]} {[%emt 00:00:06]} 1/2-1/2

[ePGN "0.1;DGT LiveChess/2.2.4"]

[Event "BPB Limburg Open 2019 Group A"]
[Site "Maastricht, Netherlands"]
[Date "2019.06.09"]
[Round "4.1"]
[White "Van Wely, Loek"]
[Black "Nasuta, Grzegorz"]
[Result "1/2-1/2"]
[TimeControl "2h + 15 sec/move"]
[WhiteFideId "1000268"]
[BlackFideId "1141686"]
[WhiteElo "2604"]
[BlackElo "2518"]

1. d4 {[%clk 01:53:54]} {[%emt 00:06:35]} Nf6 {[%clk 02:00:22]} {[%emt
00:00:08]} 2. c4 {[%clk 01:53:59]} {[%emt 00:00:10]} g6 {[%clk 02:00:31]}
{[%emt 00:00:06]} 3. g3 {[%clk 01:54:02]} {[%emt 00:00:12]} c6 {[%clk
02:00:39]} {[%emt 00:00:08]} 4. Nf3 {[%clk 01:51:37]} {[%emt 00:02:39]} Bg7
{[%clk 01:58:16]} {[%emt 00:02:38]} 5. Bg2 {[%clk 01:51:46]} {[%emt 00:00:07]}
d5 {[%clk 01:58:21]} {[%emt 00:00:10]} 6. O-O {[%clk 01:50:27]} {[%emt
00:01:32]} O-O {[%clk 01:58:17]} {[%emt 00:00:20]} 7. Qb3 {[%clk 01:49:23]}
{[%emt 00:01:19]} Qb6 {[%clk 01:58:14]} {[%emt 00:00:19]} 8. Nc3 {[%clk
01:49:14]} {[%emt 00:00:24]} Rd8 {[%clk 01:58:14]} {[%emt 00:00:15]} 9. Na4
{[%clk 01:40:44]} {[%emt 00:08:45]} Qxb3 {[%clk 01:46:15]} {[%emt 00:12:14]} 10.
axb3 {[%clk 01:39:17]} {[%emt 00:01:42]} Na6 {[%clk 01:46:25]} {[%emt
00:00:06]} 11. Bf4 {[%clk 01:38:24]} {[%emt 00:01:07]} Bf5 {[%clk 01:44:50]}
{[%emt 00:01:50]} 12. Rfc1 {[%clk 01:33:52]} {[%emt 00:04:47]} Be4 {[%clk
01:14:00]} {[%emt 00:31:05]} 13. Nc3 {[%clk 01:21:02]} {[%emt 00:13:05]} Bxf3
{[%clk 00:53:51]} {[%emt 00:20:25]} 14. Bxf3 {[%clk 01:20:44]} {[%emt
00:00:32]} dxc4 {[%clk 00:49:53]} {[%emt 00:04:14]} 15. Bxc6 {[%clk 01:09:37]}
{[%emt 00:11:21]} bxc6 {[%clk 00:49:50]} {[%emt 00:00:18]} 16. Rxa6 {[%clk
01:09:46]} {[%emt 00:00:06]} cxb3 {[%clk 00:33:51]} {[%emt 00:16:15]} 17. e3
{[%clk 01:07:03]} {[%emt 00:02:58]} c5 {[%clk 00:33:29]} {[%emt 00:00:37]} 18.
Be5 {[%clk 00:37:59]} {[%emt 00:29:18]} cxd4 {[%clk 00:29:25]} {[%emt
00:04:20]} 19. Bxd4 {[%clk 00:38:06]} {[%emt 00:00:08]} Ng4 {[%clk 00:29:34]}
{[%emt 00:00:06]} 20. Nb5 {[%clk 00:37:31]} {[%emt 00:00:50]} Rac8 {[%clk
00:19:32]} {[%emt 00:10:18]} 21. Rxc8 {[%clk 00:28:32]} {[%emt 00:09:13]} Rxc8
{[%clk 00:19:45]} {[%emt 00:00:02]} 22. h3 {[%clk 00:24:25]} {[%emt 00:04:21]}
Ne5 {[%clk 00:18:11]} {[%emt 00:01:50]} 23. Rxa7 {[%clk 00:24:30]} {[%emt
00:00:10]} Nd3 {[%clk 00:03:03]} {[%emt 00:15:23]} 24. Rxe7 {[%clk 00:16:29]}
{[%emt 00:08:15]} Nxb2 {[%clk 00:02:24]} {[%emt 00:00:56]} 25. Bxb2 {[%clk
00:12:25]} {[%emt 00:04:19]} Bxb2 {[%clk 00:02:38]} {[%emt 00:00:02]} 26. Rb7
{[%clk 00:12:33]} {[%emt 00:00:06]} Bf6 {[%clk 00:01:08]} {[%emt 00:01:45]} 27.
Nd4 {[%clk 00:10:01]} {[%emt 00:02:47]} Bxd4 {[%clk 00:01:15]} {[%emt
00:00:08]} 28. exd4 {[%clk 00:10:13]} {[%emt 00:00:02]} Rd8 {[%clk 00:01:20]}
{[%emt 00:00:11]} 1/2-1/2